[Event "Late-Titled-Tuesday-Blitz-May-14-2024"]
[Site "Chess.com"]
[Date "2024.05.14"]
[Round "3"]
[White "Russian_berezka"]
[Black "penguingm1"]
[Result "0-1"]
[WhiteElo "2598"]
[BlackElo "2852"]
[TimeControl "180+1"]
[EndTime "14:30:45 PDT"]
[Termination "penguingm1 won by checkmate"]

1. d4 {[%clk 0:03:00.9]} 1... d5 {[%clk 0:03:00.3]} 2. Bf4 {[%clk 0:03:00.5]}
2... Nf6 {[%clk 0:02:59.3]} 3. e3 {[%clk 0:03:01]} 3... e6 {[%clk 0:02:59.7]} 4.
Nd2 {[%clk 0:03:00.9]} 4... Bd6 {[%clk 0:03:00.4]} 5. Bg3 {[%clk 0:03:01.2]}
5... O-O {[%clk 0:02:58.9]} 6. Bd3 {[%clk 0:03:01.2]} 6... c5 {[%clk 0:02:59.1]}
7. c3 {[%clk 0:03:01.7]} 7... Qc7 {[%clk 0:02:58.7]} 8. f4 {[%clk 0:03:01.8]}
8... b6 {[%clk 0:02:57.3]} 9. Qe2 {[%clk 0:03:00.9]} 9... a5 {[%clk 0:02:57.3]}
10. Ngf3 {[%clk 0:03:01]} 10... Ba6 {[%clk 0:02:57.5]} 11. Ne5 {[%clk
0:03:01.4]} 11... Bxd3 {[%clk 0:02:54.2]} 12. Qxd3 {[%clk 0:03:02.3]} 12... Nc6
{[%clk 0:02:54.2]} 13. Bh4 {[%clk 0:03:02.2]} 13... Nd7 {[%clk 0:02:53.5]} 14.
O-O {[%clk 0:02:54.5]} 14... f6 {[%clk 0:02:50.7]} 15. Nxc6 {[%clk 0:02:54.5]}
15... Qxc6 {[%clk 0:02:51.1]} 16. e4 {[%clk 0:02:43.7]} 16... Rae8 {[%clk
0:02:43.2]} 17. e5 {[%clk 0:02:43.3]} 17... Bc7 {[%clk 0:02:31.8]} 18. Nf3
{[%clk 0:02:43.4]} 18... f5 {[%clk 0:02:27.7]} 19. c4 {[%clk 0:02:34]} 19...
dxc4 {[%clk 0:02:16]} 20. Qxc4 {[%clk 0:02:34.9]} 20... b5 {[%clk 0:02:16.6]}
21. Qc2 {[%clk 0:02:24.2]} 21... c4 {[%clk 0:02:16.3]} 22. a4 {[%clk 0:02:05.5]}
22... Nb6 {[%clk 0:01:42]} 23. b3 {[%clk 0:01:57]} 23... Rc8 {[%clk 0:01:25.9]}
24. axb5 {[%clk 0:01:54.2]} 24... Qxb5 {[%clk 0:01:25.5]} 25. bxc4 {[%clk
0:01:54.8]} 25... Nxc4 {[%clk 0:01:19.4]} 26. Rfb1 {[%clk 0:01:38.8]} 26... Qd5
{[%clk 0:01:18.4]} 27. Be7 {[%clk 0:01:39]} 27... Rfe8 {[%clk 0:01:06.5]} 28.
Bc5 {[%clk 0:01:38.3]} 28... Bb6 {[%clk 0:01:02.2]} 29. Bxb6 {[%clk 0:01:28.9]}
29... Nxb6 {[%clk 0:00:58]} 30. Qd3 {[%clk 0:01:06]} 30... Nc4 {[%clk
0:00:55.5]} 31. h3 {[%clk 0:01:02.4]} 31... Rc7 {[%clk 0:00:51.9]} 32. Rb3
{[%clk 0:00:56.9]} 32... h6 {[%clk 0:00:46.2]} 33. Rab1 {[%clk 0:00:57.2]} 33...
Qe4 {[%clk 0:00:42.4]} 34. Rc1 {[%clk 0:00:45.3]} 34... Rec8 {[%clk 0:00:29.9]}
35. d5 {[%clk 0:00:41]} 35... exd5 {[%clk 0:00:27.2]} 36. Nd4 {[%clk 0:00:39.4]}
36... a4 {[%clk 0:00:13.2]} 37. Rbc3 {[%clk 0:00:32.9]} 37... Qxf4 {[%clk
0:00:13.5]} 38. Ne6 {[%clk 0:00:30.4]} 38... Qxe5 {[%clk 0:00:09]} 39. Nxc7
{[%clk 0:00:30.6]} 39... Rxc7 {[%clk 0:00:09]} 40. Rd1 {[%clk 0:00:31.2]} 40...
Rc5 {[%clk 0:00:08.7]} 41. Qd4 {[%clk 0:00:20.6]} 41... Qxd4+ {[%clk 0:00:08.5]}
42. Rxd4 {[%clk 0:00:21.5]} 42... a3 {[%clk 0:00:08.9]} 43. Rd2 {[%clk
0:00:17.1]} 43... Kf7 {[%clk 0:00:06.1]} 44. Ra2 {[%clk 0:00:13.9]} 44... Rb5
{[%clk 0:00:05.2]} 45. Kf2 {[%clk 0:00:14.5]} 45... Kf6 {[%clk 0:00:03.6]} 46.
Ke2 {[%clk 0:00:14.3]} 46... Ke5 {[%clk 0:00:03.6]} 47. Kd3 {[%clk 0:00:14.8]}
47... g5 {[%clk 0:00:03.7]} 48. Re2+ {[%clk 0:00:11.4]} 48... Kd6 {[%clk
0:00:04.4]} 49. Ra2 {[%clk 0:00:11.5]} 49... Rb4 {[%clk 0:00:03.5]} 50. Kc2
{[%clk 0:00:09]} 50... h5 {[%clk 0:00:04.1]} 51. Rb3 {[%clk 0:00:09.2]} 51...
Ra4 {[%clk 0:00:04.4]} 52. Kc3 {[%clk 0:00:09.2]} 52... Kc5 {[%clk 0:00:04.2]}
53. Rb8 {[%clk 0:00:08.6]} 53... d4+ {[%clk 0:00:04.7]} 54. Kd3 {[%clk
0:00:08.2]} 54... Ne5+ {[%clk 0:00:04]} 55. Kc2 {[%clk 0:00:07.5]} 55... d3+
{[%clk 0:00:03.9]} 56. Kc3 {[%clk 0:00:06.7]} 56... Kd5 {[%clk 0:00:03.6]} 57.
Rd8+ {[%clk 0:00:05.8]} 57... Ke4 {[%clk 0:00:04.2]} 58. Rh8 {[%clk 0:00:05.8]}
58... h4 {[%clk 0:00:04.4]} 59. Rg8 {[%clk 0:00:06.2]} 59... g4 {[%clk
0:00:05.1]} 60. hxg4 {[%clk 0:00:06.2]} 60... fxg4 {[%clk 0:00:06]} 61. Rh8
{[%clk 0:00:06.9]} 61... Rc4+ {[%clk 0:00:05.4]} 62. Kd2 {[%clk 0:00:07]} 62...
Rb4 {[%clk 0:00:05.2]} 63. Rxh4 {[%clk 0:00:04.9]} 63... Rb2+ {[%clk 0:00:05]}
64. Rxb2 {[%clk 0:00:05.5]} 64... axb2 {[%clk 0:00:05.9]} 65. Rh1 {[%clk
0:00:06]} 65... Kd4 {[%clk 0:00:06.6]} 66. Rb1 {[%clk 0:00:03.9]} 66... Nc4+
{[%clk 0:00:07.2]} 67. Kd1 {[%clk 0:00:03.9]} 67... Kc3 {[%clk 0:00:07.5]} 68.
g3 {[%clk 0:00:02.9]} 68... Ne3+ {[%clk 0:00:05.4]} 69. Ke1 {[%clk 0:00:02.7]}
69... d2+ {[%clk 0:00:06.1]} 70. Kf2 {[%clk 0:00:02.2]} 70... d1=Q {[%clk
0:00:07]} 71. Rxb2 {[%clk 0:00:02.3]} 71... Qf3+ {[%clk 0:00:06.2]} 72. Ke1
{[%clk 0:00:02.6]} 72... Qf1# {[%clk 0:00:06.7]} 0-1

[Event "Late-Titled-Tuesday-Blitz-May-14-2024"]
[Site "Chess.com"]
[Date "2024.05.14"]
[Round "3"]
[White "BardArtem"]
[Black "duone"]
[Result "0-1"]
[WhiteElo "2748"]
[BlackElo "2441"]
[TimeControl "180+1"]
[EndTime "14:30:45 PDT"]
[Termination "duone won by checkmate"]

1. e4 {[%clk 0:03:00.9]} 1... c5 {[%clk 0:02:58.8]} 2. c3 {[%clk 0:02:59.5]}
2... Nf6 {[%clk 0:02:57.5]} 3. e5 {[%clk 0:02:59.6]} 3... Nd5 {[%clk 0:02:57.9]}
4. Nf3 {[%clk 0:03:00.3]} 4... Nc6 {[%clk 0:02:57.3]} 5. Bc4 {[%clk 0:03:00.3]}
5... Nb6 {[%clk 0:02:57.3]} 6. Bb3 {[%clk 0:03:00.3]} 6... d5 {[%clk 0:02:57.6]}
7. exd6 {[%clk 0:03:01.2]} 7... Qxd6 {[%clk 0:02:53.9]} 8. O-O {[%clk
0:03:01.2]} 8... e6 {[%clk 0:02:52.1]} 9. d4 {[%clk 0:03:00.7]} 9... cxd4 {[%clk
0:02:49.6]} 10. cxd4 {[%clk 0:03:00.7]} 10... Be7 {[%clk 0:02:50.1]} 11. Nc3
{[%clk 0:03:00.8]} 11... O-O {[%clk 0:02:49.4]} 12. Re1 {[%clk 0:02:58.9]} 12...
Rd8 {[%clk 0:02:48]} 13. Be3 {[%clk 0:02:57.1]} 13... Na5 {[%clk 0:02:42.9]} 14.
Bc2 {[%clk 0:02:48.5]} 14... Nac4 {[%clk 0:02:42.3]} 15. Ne4 {[%clk 0:02:43.5]}
15... Qd7 {[%clk 0:02:30.2]} 16. Qd3 {[%clk 0:02:38.3]} 16... Nxb2 {[%clk
0:02:19.8]} 17. Nf6+ {[%clk 0:02:32.8]} 17... Bxf6 {[%clk 0:02:19.7]} 18. Qxh7+
{[%clk 0:02:33.7]} 18... Kf8 {[%clk 0:02:20.1]} 19. d5 {[%clk 0:02:34.6]} 19...
Qxd5 {[%clk 0:02:01.5]} 20. Rac1 {[%clk 0:01:45.8]} 20... N6c4 {[%clk
0:01:22.7]} 21. Bb3 {[%clk 0:01:25.5]} 21... b5 {[%clk 0:01:17.7]} 22. h4 {[%clk
0:01:17.9]} 22... Ke7 {[%clk 0:01:11.6]} 23. a4 {[%clk 0:01:01.3]} 23... Qd3
{[%clk 0:01:07.9]} 24. Bc5+ {[%clk 0:00:56.1]} 24... Nd6 {[%clk 0:01:03.4]} 25.
Qh5 {[%clk 0:00:21.8]} 25... Qxb3 {[%clk 0:00:54.5]} 26. Nd4 {[%clk 0:00:11.1]}
26... Bxd4 {[%clk 0:00:33.8]} 27. Bxd4 {[%clk 0:00:12]} 27... Nbc4 {[%clk
0:00:30.5]} 28. Qg5+ {[%clk 0:00:09.2]} 28... Kd7 {[%clk 0:00:30.3]} 29. axb5
{[%clk 0:00:07.8]} 29... Bb7 {[%clk 0:00:25.9]} 30. Bc5 {[%clk 0:00:04]} 30...
Rac8 {[%clk 0:00:21]} 31. Rcd1 {[%clk 0:00:03.7]} 31... Qxb5 {[%clk 0:00:17.4]}
32. Qxg7 {[%clk 0:00:02.5]} 32... Qxc5 {[%clk 0:00:16.8]} 33. Qxf7+ {[%clk
0:00:03]} 33... Kc6 {[%clk 0:00:17.3]} 34. Qxe6 {[%clk 0:00:02.6]} 34... Re8
{[%clk 0:00:16.7]} 35. Qg4 {[%clk 0:00:02.3]} 35... Rxe1+ {[%clk 0:00:16.4]} 36.
Rxe1 {[%clk 0:00:03.2]} 36... Rf8 {[%clk 0:00:15.7]} 37. Re2 {[%clk 0:00:02.7]}
37... Qf5 {[%clk 0:00:11.8]} 38. Qd4 {[%clk 0:00:02]} 38... Qc5 {[%clk
0:00:08.1]} 39. Qc3 {[%clk 0:00:01.8]} 39... Nb6 {[%clk 0:00:06.7]} 40. Qe1
{[%clk 0:00:01.7]} 40... Nd5 {[%clk 0:00:06.8]} 41. Qd2 {[%clk 0:00:01.7]} 41...
Nc4 {[%clk 0:00:06.2]} 42. Qe1 {[%clk 0:00:01.9]} 42... Nf4 {[%clk 0:00:05.1]}
43. Re4 {[%clk 0:00:01.7]} 43... Nd3 {[%clk 0:00:04.7]} 44. Qd2 {[%clk
0:00:01.4]} 44... Rxf2 {[%clk 0:00:03.9]} 45. Qh6+ {[%clk 0:00:01.3]} 45... Rf6+
{[%clk 0:00:03.7]} 46. Qe3 {[%clk 0:00:01.6]} 46... Qxe3+ {[%clk 0:00:03.7]} 47.
Rxe3 {[%clk 0:00:02.5]} 47... Nde5 {[%clk 0:00:03.4]} 48. Rc3 {[%clk 0:00:03.4]}
48... Kd5 {[%clk 0:00:03.8]} 49. h5 {[%clk 0:00:04]} 49... Rh6 {[%clk
0:00:04.2]} 50. Rh3 {[%clk 0:00:04.9]} 50... Nf7 {[%clk 0:00:04]} 51. g4 {[%clk
0:00:05.1]} 51... Ncd6 {[%clk 0:00:03.9]} 52. Rf3 {[%clk 0:00:03]} 52... Ke6
{[%clk 0:00:03.7]} 53. Re3+ {[%clk 0:00:03.1]} 53... Ne4 {[%clk 0:00:03.1]} 54.
Rb3 {[%clk 0:00:04]} 54... Bd5 {[%clk 0:00:01.9]} 55. Ra3 {[%clk 0:00:04.9]}
55... Ne5 {[%clk 0:00:02.4]} 56. Ra6+ {[%clk 0:00:05]} 56... Nd6 {[%clk
0:00:01.3]} 57. Rxa7 {[%clk 0:00:05.1]} 57... Nxg4 {[%clk 0:00:02]} 58. Ra1
{[%clk 0:00:04]} 58... Rxh5 {[%clk 0:00:02.9]} 59. Re1+ {[%clk 0:00:04.9]} 59...
Re5 {[%clk 0:00:02.6]} 60. Ra1 {[%clk 0:00:04.9]} 60... Re4 {[%clk 0:00:02.8]}
61. Rb1 {[%clk 0:00:04.5]} 61... Nf5 {[%clk 0:00:03.7]} 62. Rb6+ {[%clk
0:00:04.2]} 62... Ke5 {[%clk 0:00:04.6]} 63. Rb1 {[%clk 0:00:01.9]} 63... Kf4
{[%clk 0:00:05.5]} 64. Rf1+ {[%clk 0:00:02.1]} 64... Kg5 {[%clk 0:00:05.1]} 65.
Rb1 {[%clk 0:00:01.9]} 65... Bc4 {[%clk 0:00:05.6]} 66. Rc1 {[%clk 0:00:02.2]}
66... Bd3 {[%clk 0:00:05.8]} 67. Ra1 {[%clk 0:00:02.2]} 67... Re3 {[%clk
0:00:06.3]} 68. Ra8 {[%clk 0:00:01.4]} 68... Kh4 {[%clk 0:00:06.4]} 69. Kg2
{[%clk 0:00:00.8]} 69... Re2+ {[%clk 0:00:06.1]} 70. Kf3 {[%clk 0:00:01.5]}
70... Nd4+ {[%clk 0:00:06.4]} 71. Kf4 {[%clk 0:00:02]} 71... Re4# {[%clk
0:00:06]} 0-1

[Event "Late-Titled-Tuesday-Blitz-May-14-2024"]
[Site "Chess.com"]
[Date "2024.05.14"]
[Round "3"]
[White "Cipy77"]
[Black "picturesquecheck"]
[Result "1/2-1/2"]
[WhiteElo "2636"]
[BlackElo "2462"]
[TimeControl "180+1"]
[EndTime "14:30:47 PDT"]
[Termination "Game drawn by stalemate"]

1. d3 {[%clk 0:03:00.9]} 1... Nf6 {[%clk 0:02:59.6]} 2. Nf3 {[%clk 0:03:00.2]}
2... g6 {[%clk 0:02:54.8]} 3. g3 {[%clk 0:02:57.8]} 3... Bg7 {[%clk 0:02:54.9]}
4. Bg2 {[%clk 0:02:58.7]} 4... O-O {[%clk 0:02:48.3]} 5. O-O {[%clk 0:02:58.9]}
5... d6 {[%clk 0:02:48.3]} 6. Nc3 {[%clk 0:02:58.3]} 6... Nc6 {[%clk 0:02:48.6]}
7. a3 {[%clk 0:02:56.3]} 7... e5 {[%clk 0:02:48.7]} 8. Rb1 {[%clk 0:02:55.5]}
8... Rb8 {[%clk 0:02:47.5]} 9. b4 {[%clk 0:02:55.4]} 9... Bg4 {[%clk 0:02:44.1]}
10. Nd2 {[%clk 0:02:54.5]} 10... Qd7 {[%clk 0:02:43]} 11. Nc4 {[%clk 0:02:53.7]}
11... d5 {[%clk 0:02:34.8]} 12. Ne3 {[%clk 0:02:53.5]} 12... d4 {[%clk
0:02:25.2]} 13. Nxg4 {[%clk 0:02:52.5]} 13... Qxg4 {[%clk 0:02:22.5]} 14. Ne4
{[%clk 0:02:51.2]} 14... Nxe4 {[%clk 0:02:22.2]} 15. Bxe4 {[%clk 0:02:52.1]}
15... Qd7 {[%clk 0:02:21]} 16. b5 {[%clk 0:02:47.1]} 16... Nd8 {[%clk
0:02:20.6]} 17. Bd2 {[%clk 0:02:42.3]} 17... f5 {[%clk 0:02:18.3]} 18. Bg2
{[%clk 0:02:42.8]} 18... Kh8 {[%clk 0:02:18.1]} 19. c3 {[%clk 0:02:41.8]} 19...
Ne6 {[%clk 0:02:09.6]} 20. cxd4 {[%clk 0:02:40.9]} 20... Nxd4 {[%clk 0:02:09.6]}
21. a4 {[%clk 0:02:30.7]} 21... c6 {[%clk 0:02:09.1]} 22. bxc6 {[%clk 0:02:28]}
22... Nxc6 {[%clk 0:02:08.6]} 23. Bc3 {[%clk 0:02:23]} 23... b6 {[%clk
0:02:07.6]} 24. Qd2 {[%clk 0:02:22.5]} 24... Rbc8 {[%clk 0:02:03.1]} 25. Rfc1
{[%clk 0:02:22.6]} 25... Nd4 {[%clk 0:02:02.7]} 26. e3 {[%clk 0:02:14.7]} 26...
Ne6 {[%clk 0:02:00.3]} 27. Bb4 {[%clk 0:02:13]} 27... Rxc1+ {[%clk 0:01:58.4]}
28. Rxc1 {[%clk 0:02:12.5]} 28... Rc8 {[%clk 0:01:57.2]} 29. h4 {[%clk
0:02:09.5]} 29... Nc5 {[%clk 0:01:47.5]} 30. a5 {[%clk 0:02:05.8]} 30... h5
{[%clk 0:01:37.7]} 31. axb6 {[%clk 0:02:05]} 31... axb6 {[%clk 0:01:37.7]} 32.
Bxc5 {[%clk 0:01:43.2]} 32... Rxc5 {[%clk 0:01:37.2]} 33. Ra1 {[%clk 0:01:41]}
33... Rc8 {[%clk 0:01:33]} 34. Qb2 {[%clk 0:01:32]} 34... b5 {[%clk 0:01:15.9]}
35. Qb3 {[%clk 0:01:24.8]} 35... Rd8 {[%clk 0:01:14]} 36. Ra6 {[%clk 0:01:04.4]}
36... Kh7 {[%clk 0:01:09.7]} 37. Rb6 {[%clk 0:01:00.7]} 37... b4 {[%clk
0:00:26.2]} 38. Qxb4 {[%clk 0:00:46.4]} 38... Qxd3 {[%clk 0:00:23.9]} 39. Qe7
{[%clk 0:00:41.3]} 39... Qd7 {[%clk 0:00:20]} 40. Qg5 {[%clk 0:00:41]} 40... Qe8
{[%clk 0:00:16.3]} 41. Kh2 {[%clk 0:00:36.7]} 41... Rd2 {[%clk 0:00:15.7]} 42.
Rb7 {[%clk 0:00:22.2]} 42... Rxf2 {[%clk 0:00:12.6]} 43. Qf6 {[%clk 0:00:20.9]}
43... Qg8 {[%clk 0:00:08.3]} 44. Qxe5 {[%clk 0:00:20.4]} 44... Re2 {[%clk
0:00:07.8]} 45. Qd4 {[%clk 0:00:17.9]} 45... Kh8 {[%clk 0:00:07.3]} 46. Qd3
{[%clk 0:00:14.6]} 46... Qa2 {[%clk 0:00:06.1]} 47. Qd8+ {[%clk 0:00:08]} 47...
Kh7 {[%clk 0:00:05.4]} 48. Rxg7+ {[%clk 0:00:08.5]} 48... Kxg7 {[%clk
0:00:05.8]} 49. Qe7+ {[%clk 0:00:08.7]} 49... Kg8 {[%clk 0:00:06]} 50. Qe8+
{[%clk 0:00:08.8]} 50... Kg7 {[%clk 0:00:06.4]} 51. Qe7+ {[%clk 0:00:09.4]}
51... Qf7 {[%clk 0:00:06.5]} 52. Qe5+ {[%clk 0:00:09.6]} 52... Kh7 {[%clk
0:00:06.8]} 53. Qf4 {[%clk 0:00:09.2]} 53... Re1 {[%clk 0:00:06.9]} 54. Qb4
{[%clk 0:00:08.2]} 54... Ra1 {[%clk 0:00:06.4]} 55. Qb2 {[%clk 0:00:07.1]} 55...
Ra7 {[%clk 0:00:07]} 56. Qd4 {[%clk 0:00:07.5]} 56... Qg7 {[%clk 0:00:07.7]} 57.
Qc4 {[%clk 0:00:07.1]} 57... Re7 {[%clk 0:00:07.6]} 58. Qf4 {[%clk 0:00:07]}
58... Qe5 {[%clk 0:00:07.9]} 59. Qc4 {[%clk 0:00:04.9]} 59... Qxe3 {[%clk
0:00:07.9]} 60. Qc6 {[%clk 0:00:05.6]} 60... Qe5 {[%clk 0:00:08.1]} 61. Qc4
{[%clk 0:00:05.6]} 61... Qf6 {[%clk 0:00:07.9]} 62. Qd3 {[%clk 0:00:05.2]} 62...
f4 {[%clk 0:00:08.3]} 63. Be4 {[%clk 0:00:03.5]} 63... fxg3+ {[%clk 0:00:08.1]}
64. Kxg3 {[%clk 0:00:04.4]} 64... Qe5+ {[%clk 0:00:07.5]} 65. Kf3 {[%clk
0:00:05.1]} 65... Qxe4+ {[%clk 0:00:08]} 66. Qxe4 {[%clk 0:00:04.7]} 66... Rxe4
{[%clk 0:00:08.9]} 67. Kxe4 {[%clk 0:00:05.3]} 67... Kg7 {[%clk 0:00:09.8]} 68.
Ke5 {[%clk 0:00:05.5]} 68... Kf7 {[%clk 0:00:10.4]} 69. Ke4 {[%clk 0:00:06]}
69... Kf6 {[%clk 0:00:11.2]} 70. Kf4 {[%clk 0:00:06.8]} 70... Ke6 {[%clk
0:00:11.5]} 71. Ke4 {[%clk 0:00:06.8]} 71... Kf6 {[%clk 0:00:11.8]} 72. Kf4
{[%clk 0:00:07.5]} 72... Kg7 {[%clk 0:00:12.4]} 73. Kg5 {[%clk 0:00:07.3]} 73...
Kf7 {[%clk 0:00:13.3]} 74. Kf4 {[%clk 0:00:07.4]} 74... Kf6 {[%clk 0:00:14.2]}
75. Ke4 {[%clk 0:00:07.9]} 75... g5 {[%clk 0:00:14.3]} 76. hxg5+ {[%clk
0:00:07.4]} 76... Kxg5 {[%clk 0:00:15.2]} 77. Kf3 {[%clk 0:00:07.9]} 77... h4
{[%clk 0:00:16.1]} 78. Kg2 {[%clk 0:00:08.7]} 78... h3+ {[%clk 0:00:16.6]} 79.
Kh2 {[%clk 0:00:09.6]} 79... Kh4 {[%clk 0:00:16.9]} 80. Kg1 {[%clk 0:00:09.9]}
80... Kg3 {[%clk 0:00:17.8]} 81. Kh1 {[%clk 0:00:10.7]} 81... h2 {[%clk
0:00:18.7]} 1/2-1/2

[Event "Late-Titled-Tuesday-Blitz-May-14-2024"]
[Site "Chess.com"]
[Date "2024.05.14"]
[Round "3"]
[White "TheAlienParty"]
[Black "Mikayel99"]
[Result "0-1"]
[WhiteElo "2432"]
[BlackElo "2620"]
[TimeControl "180+1"]
[EndTime "14:30:47 PDT"]
[Termination "Mikayel99 won on time"]

1. c4 {[%clk 0:03:00.2]} 1... g6 {[%clk 0:02:58.2]} 2. d4 {[%clk 0:02:58.7]}
2... Bg7 {[%clk 0:02:56.8]} 3. Nc3 {[%clk 0:02:58.1]} 3... c5 {[%clk 0:02:54.5]}
4. Nf3 {[%clk 0:02:57.3]} 4... cxd4 {[%clk 0:02:54.4]} 5. Nxd4 {[%clk
0:02:56.9]} 5... Nc6 {[%clk 0:02:55]} 6. Nc2 {[%clk 0:02:56.4]} 6... Nf6 {[%clk
0:02:49.8]} 7. g3 {[%clk 0:02:55.8]} 7... O-O {[%clk 0:02:47.9]} 8. Bg2 {[%clk
0:02:55.6]} 8... d6 {[%clk 0:02:46.5]} 9. O-O {[%clk 0:02:55.5]} 9... b6 {[%clk
0:02:47.1]} 10. b3 {[%clk 0:02:55.3]} 10... Bb7 {[%clk 0:02:44.1]} 11. Bb2
{[%clk 0:02:51.9]} 11... h5 {[%clk 0:02:44.5]} 12. Qd2 {[%clk 0:02:46.7]} 12...
Rb8 {[%clk 0:02:35.1]} 13. Nd5 {[%clk 0:02:41]} 13... Ne4 {[%clk 0:02:23.5]} 14.
Qc1 {[%clk 0:02:27]} 14... Bxb2 {[%clk 0:02:19.6]} 15. Qxb2 {[%clk 0:02:26.8]}
15... Ng5 {[%clk 0:02:16.5]} 16. Rad1 {[%clk 0:02:19.5]} 16... Nh7 {[%clk
0:02:04.7]} 17. Nd4 {[%clk 0:02:13.3]} 17... Nxd4 {[%clk 0:02:04]} 18. Rxd4
{[%clk 0:02:10.9]} 18... Bxd5 {[%clk 0:02:01.9]} 19. Bxd5 {[%clk 0:02:05.6]}
19... Qd7 {[%clk 0:01:56.4]} 20. Qc2 {[%clk 0:02:04.4]} 20... Kg7 {[%clk
0:01:55.2]} 21. Qc3 {[%clk 0:02:00.5]} 21... Nf6 {[%clk 0:01:53.9]} 22. Bg2
{[%clk 0:01:58.7]} 22... Qe6 {[%clk 0:01:48.5]} 23. e3 {[%clk 0:01:57.4]} 23...
b5 {[%clk 0:01:48]} 24. cxb5 {[%clk 0:01:56.4]} 24... Rxb5 {[%clk 0:01:45.6]}
25. Qc7 {[%clk 0:01:54.6]} 25... a5 {[%clk 0:01:37.7]} 26. Rc1 {[%clk
0:01:45.6]} 26... Rfb8 {[%clk 0:01:23]} 27. h3 {[%clk 0:01:43.6]} 27... Qe5
{[%clk 0:01:14]} 28. Rcc4 {[%clk 0:01:27.1]} 28... Rb4 {[%clk 0:00:58.8]} 29.
Kh2 {[%clk 0:01:20.5]} 29... Rxc4 {[%clk 0:00:53.9]} 30. Qxc4 {[%clk 0:01:14.2]}
30... Rb4 {[%clk 0:00:48]} 31. Qd3 {[%clk 0:01:05]} 31... h4 {[%clk 0:00:46.2]}
32. Rf4 {[%clk 0:00:53.5]} 32... hxg3+ {[%clk 0:00:44.3]} 33. fxg3 {[%clk
0:00:53.2]} 33... Nh5 {[%clk 0:00:41.7]} 34. Rf3 {[%clk 0:00:42.2]} 34... e6
{[%clk 0:00:38.7]} 35. Qf1 {[%clk 0:00:28.4]} 35... f5 {[%clk 0:00:32.2]} 36.
Qa6 {[%clk 0:00:27.2]} 36... Qc5 {[%clk 0:00:25.8]} 37. Qe2 {[%clk 0:00:22.3]}
37... Re4 {[%clk 0:00:22.4]} 38. Qf2 {[%clk 0:00:19]} 38... Qe5 {[%clk 0:00:15]}
39. Kg1 {[%clk 0:00:17.9]} 39... Nf6 {[%clk 0:00:12.2]} 40. Bf1 {[%clk
0:00:15.1]} 40... Nd5 {[%clk 0:00:12.1]} 41. Bd3 {[%clk 0:00:14.5]} 41... Rxe3
{[%clk 0:00:10.4]} 42. g4 {[%clk 0:00:13.9]} 42... f4 {[%clk 0:00:07.3]} 43. h4
{[%clk 0:00:11.9]} 43... Qa1+ {[%clk 0:00:05.1]} 44. Bf1 {[%clk 0:00:10.7]}
44... Rxf3 {[%clk 0:00:04.9]} 45. Qxf3 {[%clk 0:00:10.8]} 45... Qxa2 {[%clk
0:00:04.3]} 46. Bd3 {[%clk 0:00:09.8]} 46... Qa1+ {[%clk 0:00:04.2]} 47. Kh2
{[%clk 0:00:09.7]} 47... Qb2+ {[%clk 0:00:04.7]} 48. Kh3 {[%clk 0:00:09.4]}
48... Qxb3 {[%clk 0:00:04.7]} 49. Qe4 {[%clk 0:00:09.5]} 49... Ne7 {[%clk
0:00:02.5]} 50. h5 {[%clk 0:00:09.6]} 50... Qd5 {[%clk 0:00:02]} 51. hxg6 {[%clk
0:00:06.5]} 51... Qxe4 {[%clk 0:00:02.3]} 52. Bxe4 {[%clk 0:00:06.7]} 52... d5
{[%clk 0:00:02.8]} 53. Bc2 {[%clk 0:00:06.5]} 53... Nxg6 {[%clk 0:00:03.2]} 54.
Kg2 {[%clk 0:00:06.2]} 54... Kf6 {[%clk 0:00:03.5]} 55. Kf3 {[%clk 0:00:05.9]}
55... e5 {[%clk 0:00:03.6]} 56. Ke2 {[%clk 0:00:05.1]} 56... Kg5 {[%clk
0:00:03.6]} 57. Kf3 {[%clk 0:00:05.2]} 57... Nh4+ {[%clk 0:00:04]} 58. Ke2
{[%clk 0:00:05.3]} 58... e4 {[%clk 0:00:04.3]} 59. Bb3 {[%clk 0:00:05.8]} 59...
d4 {[%clk 0:00:04.5]} 60. Bd5 {[%clk 0:00:05.9]} 60... f3+ {[%clk 0:00:04.9]}
61. Kf2 {[%clk 0:00:05.8]} 61... e3+ {[%clk 0:00:05.3]} 62. Kg3 {[%clk
0:00:05.9]} 62... e2 {[%clk 0:00:05.1]} 63. Kf2 {[%clk 0:00:05.2]} 63... a4
{[%clk 0:00:05.4]} 64. Ba2 {[%clk 0:00:04.1]} 64... a3 {[%clk 0:00:05.7]} 65.
Bb1 {[%clk 0:00:03.9]} 65... d3 {[%clk 0:00:06.5]} 66. Bxd3 {[%clk 0:00:03.5]}
66... a2 {[%clk 0:00:07.1]} 67. Bxe2 {[%clk 0:00:03.9]} 67... a1=Q {[%clk
0:00:07.9]} 68. Bxf3 {[%clk 0:00:04.1]} 68... Nxf3 {[%clk 0:00:08.8]} 69. Kxf3
{[%clk 0:00:04.3]} 69... Qd4 {[%clk 0:00:09.2]} 70. Kg3 {[%clk 0:00:04.3]} 70...
Qxg4+ {[%clk 0:00:09.9]} 0-1